fUSD/lending_fUSD_20250217
["ID","MTS","AMOUNT","RATE_DAILY","PERIOD"]
[353382404,1739807477305,-500.0,0.00014191,2]
[353382405,1739807477315,-500.0,0.00014191,2]
[353382406,1739807477328,-1345.58,0.00014191,2]
[353382407,1739807477337,-1657.31,0.00014191,2]
[353382408,1739807477347,-1425.4,0.00014191,2]
[353382409,1739807477357,-2229.85,0.00014191,2]
[353382410,1739807477367,-525.74,0.00014191,2]
[353382411,1739807477377,-1194.03,0.00014191,2]
[353382412,1739807477387,-1884.16,0.00014191,2]
[353382413,1739807477399,-1836.48,0.00014191,2]
[353382414,1739807477408,-1606.52,0.00014191,2]
[353382415,1739807477419,-1788.94,0.00014191,2]
[353382416,1739807477429,-1804.02,0.00014191,2]
[353382417,1739807477441,-2166.2,0.00014191,2]
[353382418,1739807477451,-2535.58,0.00014191,2]
[353382419,1739807477461,-853.36,0.00014191,2]
[353382420,1739807477471,-1126.0,0.00014191,2]
[353382421,1739807477481,-638.12,0.00014191,2]
[353382422,1739807477490,-2061.78,0.00014191,2]
[353382423,1739807477500,-2134.86,0.00014191,2]
[353382424,1739807477509,-500.0,0.00014191,2]
[353382425,1739807477519,-1842.58,0.00014191,2]
[353382426,1739807477529,-1072.73,0.00014191,2]
[353382427,1739807477540,-7885.42,0.00014191,2]
[353382428,1739807477550,-500.0,0.00014191,2]
[353382429,1739807477560,-5452.19,0.00014191,2]
[353382430,1739807477571,-2172.79,0.00014191,2]
[353382431,1739807477582,-500.0,0.00014191,2]
[353382432,1739807477592,-1374.81,0.00014191,2]
[353382433,1739807477602,-2458.85,0.00014191,2]
[353382434,1739807477612,-2858.9,0.00014191,2]
[353382435,1739807477622,-500.0,0.00014191,2]
[353382436,1739807477632,-882.69,0.00014191,2]
[353382437,1739807477643,-651.75,0.00014191,2]
[353382438,1739807477652,-500.0,0.00014191,2]
[353382439,1739807477662,-500.0,0.00014191,2]
[353382440,1739807477672,-2720.75,0.00014191,2]
[353382441,1739807477682,-1648.91,0.00014191,2]
[353382442,1739807477692,-1178.62,0.00014191,2]
[353382443,1739807477702,-2204.17,0.00014191,2]
[353382444,1739807477713,-516.84030514,0.00014191,2]
[353382445,1739807477724,-1814.85,0.00014191,2]
[353382446,1739807477734,-1380.68,0.00014191,2]
[353382447,1739807477744,-500.0,0.00014191,2]
[353382448,1739807477755,-1938.39,0.00014191,2]
[353382449,1739807477764,-2244.08,0.00014191,2]
[353382450,1739807477774,-2071.51,0.00014191,2]
[353382451,1739807477784,-500.6,0.00014191,2]
[353382452,1739807477794,-612.79,0.00014191,2]
[353382453,1739807477804,-581.63,0.00014191,2]
[353382454,1739807477815,-500.0,0.00014191,2]
[353382455,1739807477828,-2400.66,0.00014191,2]
[353382456,1739807477839,-1207.45,0.00014191,2]
[353382457,1739807477849,-3070.4,0.00014191,2]
[353382458,1739807477859,-1143.41,0.00014191,2]
[353382459,1739807477868,-500.0,0.00014191,2]
[353382460,1739807477878,-1197.99,0.00014191,2]
[353382461,1739807477888,-500.0,0.00014191,2]
[353382462,1739807477898,-1667.68,0.00014191,2]
[353382463,1739807477907,-500.0,0.00014191,2]
[353382464,1739807477919,-500.0,0.00014191,2]
[353382465,1739807477931,-1541.63,0.00014191,2]
[353382466,1739807477942,-5518.95,0.00014191,2]
[353382467,1739807477953,-1955.16,0.00014191,2]
[353382468,1739807477962,-1942.56,0.00014191,2]
[353382469,1739807477972,-1149.06,0.00014191,2]
[353382470,1739807477982,-500.0,0.00014191,2]
[353382471,1739807477991,-1153.07,0.00014191,2]
[353382472,1739807478001,-500.0,0.00014191,2]
[353382473,1739807478012,-500.0,0.00014191,2]
[353382474,1739807478023,-1541.27,0.00014191,2]
[353382475,1739807478033,-500.0,0.00014191,2]
[353382476,1739807478043,-500.0,0.00014191,2]
[353382477,1739807478053,-500.0,0.00014191,2]
[353382478,1739807478063,-1315.16,0.00014191,2]
[353382479,1739807478075,-414.00987751,0.00014191,2]
[353382480,1739807478086,-1801.98,0.00014191,2]
[353382481,1739807478096,-500.0,0.00014191,2]
[353382482,1739807478106,-500.0,0.00014191,2]
[353382483,1739807478116,-2082.88,0.00014191,2]
[353382484,1739807478126,-1138.66,0.00014191,2]
[353382485,1739807478137,-1943.42,0.00014191,2]
[353382486,1739807478376,-500.0,0.00014191,2]
[353382487,1739807478399,-2980.55,0.00014191,2]
[353382488,1739807478410,-1537.9,0.00014191,2]
[353382489,1739807478420,-951.04,0.00014191,2]
[353382490,1739807478430,-500.0,0.00014191,2]
[353382491,1739807478440,-3797.93,0.00014191,2]
[353382492,1739807478451,-1352.91,0.00014191,2]
[353382493,1739807478461,-1240.17,0.00014191,2]
[353382494,1739807478470,-2181.55,0.00014191,2]
[353382495,1739807478481,-712.01,0.00014191,2]
[353382496,1739807478492,-500.0,0.00014191,2]
[353382497,1739807478503,-1396.2,0.00014191,2]
[353382498,1739807478513,-3051.02,0.00014191,2]
[353382499,1739807478524,-1258.31,0.00014191,2]
[353382500,1739807478534,-746.18,0.00014191,2]
[353382501,1739807478545,-1484.24,0.00014191,2]
[353382502,1739807478556,-1478.39,0.00014191,2]
[353382503,1739807478567,-1244.08,0.00014191,2]
[353382504,1739807478580,-664.49,0.00014191,2]
[353382505,1739807478590,-534.95,0.00014191,2]
[353382506,1739807478599,-1341.95,0.00014191,2]
[353382507,1739807478608,-1458.02,0.00014191,2]
[353382508,1739807478618,-1165.58,0.00014191,2]
[353382509,1739807478628,-1002.63,0.00014191,2]
[353382510,1739807478639,-2070.07,0.00014191,2]
[353382511,1739807478649,-1827.24,0.00014191,2]
[353382512,1739807478659,-1336.55,0.00014191,2]
[353382513,1739807478669,-2645.65,0.00014191,2]
[353382514,1739807478679,-1074.8,0.00014191,2]
[353382515,1739807478688,-893.96,0.00014191,2]
[353382516,1739807478698,-670.42,0.00014191,2]
[353382517,1739807478708,-1489.8,0.00014191,2]
[353382518,1739807478718,-390.56964542,0.00014191,2]
[353382519,1739807478728,-2198.3,0.00014191,2]
[353382520,1739807478738,-202.0,0.0001421,2]
[353382521,1739807478748,-205.0,0.0001421,2]
[353382522,1739807478757,-500.0,0.00014218,2]
[353382523,1739807478767,-2733.35226029,0.00014237,2]
[353382524,1739807478776,-500.0,0.00014247,7]
[353382525,1739807478787,-200.0,0.00014253,2]
[353382526,1739807478796,-205.0,0.0001426,2]
[353382527,1739807478805,-209.0,0.0001426,2]
[353382528,1739807478816,-4473.6847997,0.00014263,2]
[353382529,1739807478827,-3823.2668889,0.00014263,2]
[353382530,1739807478837,-5625.0835005,0.00014263,2]
[353382531,1739807478846,-1299.9478416,0.00014263,2]
[353382532,1739807478856,-848.67,0.00014272,2]
[353382533,1739807478866,-869.210235,0.00014273,2]
[353382534,1739807478876,-805.829032,0.00014273,2]
[353382535,1739807478886,-500.0,0.00014273,2]
[353382536,1739807478896,-500.0,0.00014273,2]
[353382537,1739807478906,-500.0,0.00014273,2]
[353382538,1739807478917,-583.65,0.00014273,2]
[353382539,1739807478931,-500.0,0.00014273,2]
[353382540,1739807478940,-500.0,0.00014273,2]
[353382541,1739807478950,-670.0,0.00014273,2]
[353382542,1739807478961,-500.0,0.00014273,2]
[353382543,1739807478971,-500.0,0.00014273,2]
[353382544,1739807478981,-500.0,0.00014273,2]
[353382545,1739807478990,-505.23,0.00014273,2]
[353382546,1739807479000,-582.08,0.00014273,2]
[353382547,1739807479011,-500.0,0.00014273,2]
[353382548,1739807479022,-500.0,0.00014273,2]
[353382549,1739807479031,-521.71,0.00014273,2]
[353382550,1739807479041,-500.0,0.00014273,2]
[353382551,1739807479050,-500.0,0.00014273,2]
[353382552,1739807479060,-500.0,0.00014273,2]
[353382553,1739807479069,-500.0,0.00014273,2]
[353382554,1739807479082,-500.0,0.00014273,2]
[353382555,1739807479091,-500.0,0.00014273,2]
[353382556,1739807479101,-500.0,0.00014273,2]
[353382557,1739807479110,-716.0,0.00014273,2]
[353382558,1739807479120,-724.35,0.00014273,2]
[353382559,1739807479129,-500.0,0.00014273,2]
[353382560,1739807479139,-505.21,0.00014273,2]
[353382561,1739807479149,-500.0,0.00014273,2]
[353382562,1739807479159,-500.0,0.00014273,2]
[353382563,1739807479169,-500.0,0.00014273,2]
[353382564,1739807479178,-886.78,0.00014273,2]
[353382565,1739807479188,-739.86,0.00014273,2]
[353382566,1739807479198,-500.0,0.00014273,2]
[353382567,1739807479207,-500.0,0.00014273,2]
[353382568,1739807479217,-545.59,0.00014273,2]
[353382569,1739807479227,-777.74,0.00014273,2]
[353382570,1739807479236,-500.0,0.00014273,2]
[353382571,1739807479246,-500.0,0.00014273,2]
[353382572,1739807479255,-916.92,0.00014273,2]
[353382573,1739807479265,-570.5,0.00014273,2]
[353382574,1739807479275,-1159.55,0.00014273,2]
[353382575,1739807479285,-500.0,0.00014273,2]
[353382576,1739807479295,-601.32,0.00014273,2]
[353382577,1739807479304,-587.92,0.00014273,2]
[353382578,1739807479314,-534.04,0.00014273,2]
[353382579,1739807479325,-599.83,0.00014273,2]
[353382580,1739807479336,-661.0,0.00014273,2]
[353382581,1739807479346,-533.51,0.00014273,2]
[353382582,1739807479356,-811.77,0.00014273,2]
[353382583,1739807479366,-576.06,0.00014273,2]
[353382584,1739807479376,-593.38,0.00014273,2]
[353382585,1739807479386,-630.76,0.00014273,2]
[353382586,1739807479395,-714.58,0.00014273,2]
[353382587,1739807479406,-942.74,0.00014273,2]
[353382588,1739807479415,-500.0,0.00014273,2]
[353382589,1739807479425,-932.03,0.00014273,2]
[353382590,1739807479435,-851.93,0.00014273,2]
[353382591,1739807479444,-697.57,0.00014273,2]
[353382592,1739807479454,-500.0,0.00014273,2]
[353382593,1739807479463,-500.0,0.00014273,2]
[353382594,1739807479472,-500.0,0.00014273,2]
[353382595,1739807479481,-558.17,0.00014273,2]
[353382596,1739807479491,-901.05,0.00014273,2]
[353382597,1739807479500,-501.89,0.00014273,2]
[353382598,1739807479510,-958.61,0.00014273,2]
[353382599,1739807479519,-500.0,0.00014273,2]
[353382600,1739807479529,-651.14,0.00014273,2]
[353382601,1739807479538,-715.24,0.00014273,2]
[353382602,1739807479548,-578.19,0.00014273,2]
[353382603,1739807479557,-533.54,0.00014273,2]
[353382604,1739807479567,-500.0,0.00014273,2]
[353382605,1739807479578,-500.0,0.00014273,2]
[353382606,1739807479588,-500.0,0.00014273,2]
[353382607,1739807479597,-649.57,0.00014273,2]
[353382608,1739807479607,-500.0,0.00014273,2]
[353382609,1739807479616,-658.48,0.00014273,2]
[353382610,1739807479625,-876.0,0.00014273,2]
[353382611,1739807479635,-500.0,0.00014273,2]
[353382612,1739807479645,-500.0,0.00014273,2]
[353382613,1739807479654,-500.0,0.00014273,2]
[353382614,1739807479664,-1088.47,0.00014273,2]
[353382615,1739807479673,-720.55,0.00014273,2]
[353382616,1739807479683,-806.09,0.00014273,2]
[353382617,1739807479693,-500.0,0.00014273,2]
[353382618,1739807479703,-500.0,0.00014273,2]
[353382619,1739807479713,-946.71,0.00014273,2]
[353382620,1739807479723,-553.22,0.00014273,2]
[353382621,1739807479732,-500.0,0.00014273,2]
[353382622,1739807479743,-668.58,0.00014273,2]
[353382623,1739807479752,-500.0,0.00014273,2]
[353382624,1739807479762,-500.0,0.00014273,2]
[353382625,1739807479771,-998.85,0.00014273,2]
[353382626,1739807479780,-835.93,0.00014273,2]
[353382627,1739807479789,-500.0,0.00014273,2]
[353382628,1739807479799,-1006.39,0.00014273,2]
[353382629,1739807479809,-500.0,0.00014273,2]
[353382630,1739807479818,-500.0,0.00014273,2]
[353382631,1739807479829,-686.36,0.00014273,2]
[353382632,1739807479838,-1087.94,0.00014273,2]
[353382633,1739807479848,-820.65,0.00014273,2]
[353382634,1739807479858,-500.0,0.00014273,2]
[353382635,1739807479868,-868.32,0.00014273,2]
[353382636,1739807479878,-640.41,0.00014273,2]
[353382637,1739807479887,-538.04,0.00014273,2]
[353382638,1739807479897,-500.0,0.00014273,2]
[353382639,1739807479906,-964.43,0.00014273,2]
[353382640,1739807479916,-615.52131716,0.00014273,2]
[353382641,1739807479928,-500.0,0.00014273,2]
[353382642,1739807479938,-500.0,0.00014273,2]
[353382643,1739807479947,-500.0,0.00014273,2]
[353382644,1739807479957,-500.0,0.00014273,2]
[353382645,1739807479967,-1160.76,0.00014273,2]
[353382646,1739807479977,-500.0,0.00014273,2]
[353382647,1739807479986,-500.0,0.00014273,2]
[353382648,1739807479995,-554.97,0.00014273,2]
[353382649,1739807480004,-500.0,0.00014273,2]
[353382650,1739807480014,-663.55,0.00014273,2]
[353382651,1739807480024,-630.26,0.00014273,2]
[353382652,1739807480033,-551.48,0.00014273,2]
[353382653,1739807480042,-769.55,0.00014273,2]
[353382654,1739807480052,-636.61,0.00014273,2]
[353382655,1739807480062,-620.74,0.00014273,2]
[353382656,1739807480071,-622.98,0.00014273,2]
[353382657,1739807480083,-923.67,0.00014273,2]
[353382658,1739807480092,-532.9,0.00014273,2]
[353382659,1739807480102,-500.0,0.00014273,2]
[353382660,1739807480111,-726.8,0.00014273,2]
[353382661,1739807480120,-540.32,0.00014273,2]
[353382662,1739807480130,-650.65,0.00014273,2]
[353382663,1739807480139,-500.0,0.00014273,2]
[353382664,1739807480149,-1118.82,0.00014273,2]
[353382665,1739807480159,-1078.45,0.00014273,2]
[353382666,1739807480168,-500.0,0.00014273,2]
[353382667,1739807480177,-685.22,0.00014273,2]
[353382668,1739807480187,-1070.7,0.00014273,2]
[353382669,1739807480196,-500.0,0.00014273,2]
[353382670,1739807480205,-500.0,0.00014273,2]
[353382671,1739807480215,-1539.55,0.00014273,2]
[353382672,1739807480224,-500.0,0.00014273,2]
[353382673,1739807480234,-747.79,0.00014273,2]
[353382674,1739807480243,-1026.38,0.00014273,2]
[353382675,1739807480252,-975.52,0.00014273,2]
[353382676,1739807480262,-678.17,0.00014273,2]
[353382677,1739807480271,-594.06,0.00014273,2]
[353382678,1739807480280,-780.0,0.00014273,2]
[353382679,1739807480290,-1153.12,0.00014273,2]
[353382680,1739807480299,-1066.97,0.00014273,2]
[353382681,1739807480308,-1019.8,0.00014273,2]
[353382682,1739807480317,-560.06,0.00014273,2]
[353382683,1739807480329,-633.55,0.00014273,2]
[353382684,1739807480338,-1048.88,0.00014273,2]
[353382685,1739807480348,-626.8,0.00014273,2]
[353382686,1739807480357,-723.6,0.00014273,2]
[353382687,1739807480366,-500.0,0.00014273,2]
[353382688,1739807480376,-551.93,0.00014273,2]
[353382689,1739807480385,-500.0,0.00014273,2]
[353382690,1739807480394,-756.98,0.00014273,2]
[353382691,1739807480404,-852.93,0.00014273,2]
[353382692,1739807480413,-1050.49,0.00014273,2]
[353382693,1739807480423,-500.0,0.00014273,2]
[353382694,1739807480432,-500.0,0.00014273,2]
[353382695,1739807480441,-500.0,0.00014273,2]
[353382696,1739807480451,-500.0,0.00014273,2]
[353382697,1739807480460,-1267.08,0.00014273,2]
[353382698,1739807480470,-1036.5,0.00014273,2]
[353382699,1739807480479,-1011.2,0.00014273,2]
[353382700,1739807480488,-500.0,0.00014273,2]
[353382701,1739807480498,-500.0,0.00014273,2]
[353382702,1739807480507,-601.83,0.00014273,2]
[353382703,1739807480517,-500.0,0.00014273,2]
[353382704,1739807480527,-1580.87,0.00014273,2]
[353382705,1739807480536,-620.39,0.00014273,2]
[353382706,1739807480546,-587.68,0.00014273,2]
[353382707,1739807480556,-660.55,0.00014273,2]
[353382708,1739807480565,-801.21,0.00014273,2]
[353382709,1739807480576,-2046.76,0.00014273,2]
[353382710,1739807480585,-790.46,0.00014273,2]
[353382711,1739807480596,-500.0,0.00014273,2]
[353382712,1739807480606,-681.15,0.00014273,2]
[353382713,1739807480616,-565.07,0.00014273,2]
[353382714,1739807480627,-500.0,0.00014273,2]
[353382715,1739807480638,-500.0,0.00014273,2]
[353382716,1739807480648,-500.0,0.00014273,2]
[353382717,1739807480658,-2398.73,0.00014273,2]
[353382718,1739807480667,-500.0,0.00014273,2]
[353382719,1739807480677,-2019.76,0.00014273,2]
[353382720,1739807480687,-500.0,0.00014273,2]
[353382721,1739807480696,-500.0,0.00014273,2]
[353382722,1739807480705,-1604.62,0.00014273,2]
[353382723,1739807480765,-534.13,0.00014273,2]
[353382724,1739807480777,-1719.53,0.00014273,2]
[353382725,1739807480788,-1063.26,0.00014273,2]
[353382726,1739807480799,-500.0,0.00014273,2]
[353382727,1739807480809,-562.89,0.00014273,2]
[353382728,1739807480820,-1290.74,0.00014273,2]
[353382729,1739807480832,-1133.18,0.00014273,2]
[353382730,1739807480841,-520.45,0.00014273,2]
[353382731,1739807480851,-500.0,0.00014273,2]
[353382732,1739807480861,-2505.64,0.00014273,2]
[353382733,1739807480871,-564.08,0.00014273,2]
[353382734,1739807480881,-500.0,0.00014273,2]
[353382735,1739807480892,-517.74,0.00014273,2]
[353382736,1739807480901,-814.48,0.00014273,2]
[353382737,1739807480911,-1057.17,0.00014273,2]
[353382738,1739807480922,-739.21,0.00014273,2]
[353382739,1739807480937,-1202.79,0.00014273,2]
[353382740,1739807480946,-621.24,0.00014273,2]
[353382741,1739807480956,-1418.14,0.00014273,2]
[353382742,1739807480966,-654.78,0.00014273,2]
[353382743,1739807480975,-4371.68,0.00014273,2]
[353382744,1739807480985,-1707.3,0.00014273,2]
[353382745,1739807480994,-572.8,0.00014273,2]
[353382746,1739807481005,-588.02,0.00014273,2]
[353382747,1739807481015,-1519.54,0.00014273,2]
[353382748,1739807481024,-797.96,0.00014273,2]
[353382749,1739807481033,-500.0,0.00014273,2]
[353382750,1739807481042,-2432.52,0.00014273,2]
[353382751,1739807481052,-500.0,0.00014273,2]
[353382752,1739807481061,-552.32,0.00014273,2]
[353382753,1739807481071,-500.0,0.00014273,2]
[353382754,1739807481083,-1511.33,0.00014273,2]
[353382755,1739807481092,-1043.05,0.00014273,2]
[353382756,1739807481102,-1468.51,0.00014273,2]
[353382757,1739807481112,-541.45,0.00014273,2]
[353382758,1739807481122,-1112.54,0.00014273,2]
[353382759,1739807481131,-500.0,0.00014273,2]
[353382760,1739807481141,-1039.9,0.00014273,2]
[353382761,1739807481151,-1196.9,0.00014273,2]
[353382762,1739807481160,-812.67,0.00014273,2]
[353382763,1739807481170,-500.0,0.00014273,2]
[353382764,1739807481179,-2132.15,0.00014273,2]
[353382765,1739807481189,-1050.4,0.00014273,2]
[353382766,1739807481199,-1483.69,0.00014273,2]
[353382767,1739807481208,-1369.18,0.00014273,2]
[353382768,1739807481218,-653.46,0.00014273,2]
[353382769,1739807481227,-500.0,0.00014273,2]
[353382770,1739807481237,-1965.34,0.00014273,2]
[353382771,1739807481247,-2581.63,0.00014273,2]
[353382772,1739807481256,-1894.74,0.00014273,2]
[353382773,1739807481266,-1801.72,0.00014273,2]
[353382774,1739807481277,-1435.92,0.00014273,2]
[353382775,1739807481286,-509.21534472,0.00014273,2]
[353382776,1739807481296,-676.24,0.00014273,2]
[353382777,1739807481306,-828.24,0.00014273,2]
[353382778,1739807481316,-1066.36,0.00014273,2]
[353382779,1739807481328,-500.0,0.00014273,2]
[353382780,1739807481337,-500.0,0.00014273,2]
[353382781,1739807481347,-1345.58,0.00014273,2]
[353382782,1739807481357,-1657.31,0.00014273,2]
[353382783,1739807481366,-1425.4,0.00014273,2]
[353382784,1739807481376,-2229.85,0.00014273,2]
[353382785,1739807481385,-525.74,0.00014273,2]
[353382786,1739807481395,-1194.03,0.00014273,2]
[353382787,1739807481404,-1884.16,0.00014273,2]
[353382788,1739807481414,-1836.48,0.00014273,2]
[353382789,1739807481424,-1606.52,0.00014273,2]
[353382790,1739807481433,-1788.94,0.00014273,2]
[353382791,1739807481443,-1804.02,0.00014273,2]
[353382792,1739807481452,-2166.2,0.00014273,2]
[353382793,1739807481462,-2535.58,0.00014273,2]
[353382794,1739807481471,-853.36,0.00014273,2]
[353382795,1739807481480,-638.12,0.00014273,2]
[353382796,1739807481490,-1126.0,0.00014273,2]
[353382797,1739807481499,-2061.78,0.00014273,2]
[353382798,1739807481509,-2134.86,0.00014273,2]
[353382799,1739807481519,-193.76518013,0.00014273,2]
[353382800,1739807481527,-1842.58,0.00014273,2]
[353382801,1739807481537,-1072.73,0.00014273,2]
[353382802,1739807481546,-7885.42,0.00014273,2]
[353382803,1739807481556,-500.0,0.00014273,2]
[353382804,1739807481566,-5452.19,0.00014273,2]
[353382805,1739807481576,-2172.79,0.00014273,2]
[353382806,1739807481585,-500.0,0.00014273,2]
[353382807,1739807481594,-1374.81,0.00014273,2]
[353382808,1739807481604,-2458.85,0.00014273,2]
[353382809,1739807481614,-2858.9,0.00014273,2]
[353382810,1739807481623,-502.35066316,0.00014273,2]
[353382811,1739807481633,-882.69,0.00014273,2]
[353382812,1739807481643,-651.75,0.00014273,2]
[353382813,1739807481653,-500.0,0.00014273,2]
[353382814,1739807481663,-500.0,0.00014273,2]
[353382815,1739807481673,-2720.75,0.00014273,2]
[353382816,1739807481682,-1648.91,0.00014273,2]
[353382817,1739807481693,-1178.62,0.00014273,2]
[353382818,1739807481702,-2204.17,0.00014273,2]
[353382819,1739807481712,-1814.85,0.00014273,2]
[353382820,1739807481721,-1380.68,0.00014273,2]
[353382821,1739807481731,-500.0,0.00014273,2]
[353382822,1739807481740,-1938.39,0.00014273,2]
[353382823,1739807481749,-2244.08,0.00014273,2]
[353382824,1739807481758,-2071.51,0.00014273,2]
[353382825,1739807481768,-612.79,0.00014273,2]
[353382826,1739807481777,-500.6,0.00014273,2]
[353382827,1739807481786,-581.63,0.00014273,2]
[353382828,1739807481796,-500.0,0.00014273,2]
[353382829,1739807481805,-2400.66,0.00014273,2]
[353382830,1739807481814,-1207.45,0.00014273,2]
[353382831,1739807481825,-3070.4,0.00014273,2]
[353382832,1739807481835,-1143.41,0.00014273,2]
[353382833,1739807481844,-500.0,0.00014273,2]
[353382834,1739807481853,-1197.99,0.00014273,2]
[353382835,1739807481862,-500.0,0.00014273,2]
[353382836,1739807481871,-1667.68,0.00014273,2]
[353382837,1739807481880,-500.0,0.00014273,2]
[353382838,1739807481889,-500.0,0.00014273,2]
[353382839,1739807481898,-5518.95,0.00014273,2]
[353382840,1739807481907,-1541.63,0.00014273,2]
[353382841,1739807481916,-1955.16,0.00014273,2]
[353382842,1739807481930,-1942.56,0.00014273,2]
[353382843,1739807481939,-1149.06,0.00014273,2]
[353382844,1739807481950,-500.0,0.00014273,2]
[353382845,1739807481959,-1153.07,0.00014273,2]
[353382846,1739807481970,-500.0,0.00014273,2]
[353382847,1739807481979,-500.0,0.00014273,2]
[353382848,1739807481989,-1541.27,0.00014273,2]
[353382849,1739807481999,-500.0,0.00014273,2]
[353382850,1739807482010,-500.0,0.00014273,2]
[353382851,1739807482020,-583.49947935,0.00014273,2]
[353382852,1739807482030,-1315.16,0.00014273,2]
[353382853,1739807482041,-1801.98,0.00014273,2]
[353382854,1739807482051,-500.0,0.00014273,2]
[353382855,1739807482061,-500.0,0.00014273,2]
[353382856,1739807482070,-2082.88,0.00014273,2]
[353382857,1739807482080,-1138.66,0.00014273,2]
[353382858,1739807482089,-1943.42,0.00014273,2]
[353382859,1739807482098,-500.0,0.00014273,2]
[353382860,1739807482111,-2980.55,0.00014273,2]
[353382861,1739807482120,-951.04,0.00014273,2]
[353382862,1739807482130,-500.0,0.00014273,2]
[353382863,1739807482139,-3797.93,0.00014273,2]
[353382864,1739807482148,-1537.9,0.00014273,2]
[353382865,1739807482157,-1352.91,0.00014273,2]
[353382866,1739807482167,-1240.17,0.00014273,2]
[353382867,1739807482176,-2181.55,0.00014273,2]
[353382868,1739807482186,-712.01,0.00014273,2]
[353382869,1739807482195,-500.0,0.00014273,2]
[353382870,1739807482206,-1396.2,0.00014273,2]
[353382871,1739807482216,-3051.02,0.00014273,2]
[353382872,1739807482225,-1258.31,0.00014273,2]
[353382873,1739807482235,-746.18,0.00014273,2]
[353382874,1739807482244,-1484.24,0.00014273,2]
[353382875,1739807482254,-1478.39,0.00014273,2]
[353382876,1739807482264,-1244.08,0.00014273,2]
[353382877,1739807482273,-664.49,0.00014273,2]
[353382878,1739807482282,-534.95,0.00014273,2]
[353382879,1739807482292,-1341.95,0.00014273,2]
[353382880,1739807482301,-1458.02,0.00014273,2]
[353382881,1739807482311,-1165.58,0.00014273,2]
[353382882,1739807482320,-1002.63,0.00014273,2]
[353382883,1739807482330,-2070.07,0.00014273,2]
[353382884,1739807482339,-1827.24,0.00014273,2]
[353382885,1739807482349,-1336.55,0.00014273,2]
[353382886,1739807482359,-2645.65,0.00014273,2]
[353382887,1739807482368,-1074.8,0.00014273,2]
[353382888,1739807482377,-893.96,0.00014273,2]
[353382889,1739807482387,-670.42,0.00014273,2]
[353382890,1739807482396,-1489.8,0.00014273,2]
[353382891,1739807482406,-2198.3,0.00014273,2]
[353382892,1739807482415,-205.0,0.000143,2]
[353382893,1739807482424,-209.0,0.000143,2]
[353382894,1739807482433,-150.0,0.0001432,2]
[353382895,1739807482442,-150.0,0.0001432,2]
[353382896,1739807482451,-150.0,0.0001432,2]
[353382897,1739807482461,-150.0,0.0001432,2]
[353382898,1739807482470,-150.0,0.0001432,2]
[353382899,1739807482479,-150.0,0.0001432,2]
[353382900,1739807482488,-150.0,0.0001432,2]
[353382901,1739807482498,-300.0,0.0001432,2]
[353382902,1739807482507,-150.0,0.0001432,2]
[353382903,1739807482516,-185.37,0.0001432,2]